bitfinex/quotes_SOLUSD_20241007
["timestamp","ask_amount","ask_price","bid_price","bid_amount"]
[1728323501869,6.702,149.21,149.18,4.90789776]
[1728323502063,16.2287,149.23,149.18,1.34056286]
[1728323502272,6.702,149.21,149.17,23.4626]
[1728323502444,6.702,149.21,149.18,4.90890257]
[1728323502639,6.702,149.21,149.17,24.8031201]
[1728323502865,6.702,149.21,149.18,3.56840323]
[1728323503066,6.7024,149.2,149.17,23.4626]
[1728323503273,32.9815,149.23,149.18,3.56958155]
[1728323503569,6.703,149.19,149.15,6.7043]
[1728323503772,6.703,149.19,149.16,3.56998341]
[1728323503973,6.703,149.19,149.17,3.56998341]
[1728323504156,6.703,149.19,149.18,3.56998341]
[1728323505161,6.703,149.19,149.18,3.57152841]
[1728323508873,6.703,149.19,149.15,6.7043]
[1728323509075,6.703,149.19,149.18,3.5733575]
[1728323509491,23.776884,149.22,149.18,3.5733575]
[1728323509678,6.7025,149.2,149.19,3.5733575]
[1728323512194,6.7025,149.2,149.17,6.7036]
[1728323512375,6.7025,149.2,149.18,3.57307396]
[1728323512571,6.7025,149.2,149.19,3.57307396]
[1728323520313,30.479384,149.2,149.19,3.57307396]
[1728323520614,6.7042,149.16,149.15,3.49229213]
[1728323520798,6.7042,149.16,149.15,3.57403918]
[1728323521408,6.7042,149.16,149.15,7.14826182]
[1728323521798,6.7042,149.16,149.15,3.57422264]
[1728323524018,23.776884,149.19,149.15,3.57422264]
[1728323524019,6.7031,149.19,149.16,6.7041]
[1728323524208,6.7022,149.21,149.17,10.27782264]
[1728323524521,6.7024,149.2,149.18,3.57422264]
[1728323524696,6.7024,149.2,149.18,3.57439109]
[1728323525018,6.7024,149.2,149.16,24.80478877]
[1728323527708,6.7024,149.2,149.19,3.57470907]
[1728323528296,6.7024,149.2,149.19,3.57455144]
[1728323528629,30.479284,149.2,149.19,3.57455144]
[1728323529291,30.479284,149.2,149.17,3.57490003]
[1728323529292,30.102784,149.19,149.17,3.57490003]
[1728323529493,30.102784,149.19,149.14,3.49229213]
[1728323529800,6.7042,149.16,149.15,3.57498177]
[1728323531622,6.7042,149.16,149.13,3.49229213]
[1728323532219,6.7042,149.16,149.14,3.57298839]
[1728323532522,6.7042,149.16,149.15,3.57298839]
[1728323538611,6.7042,149.16,149.12,3.49229213]
[1728323538810,6.7042,149.16,149.13,3.56955271]
[1728323539014,6.7042,149.16,149.14,3.56955271]
[1728323539215,6.7042,149.16,149.15,7.1391037]
[1728323539415,6.7042,149.16,149.15,3.56955099]
[1728323539821,6.7042,149.16,149.15,7.1391037]
[1728323540122,6.7042,149.16,149.15,3.56955099]
[1728323540626,6.7042,149.16,149.15,7.1391037]
[1728323540834,6.7042,149.16,149.15,3.56955099]
[1728323541210,6.7042,149.16,149.15,7.1391037]
[1728323541413,6.7042,149.16,149.15,3.56955099]
[1728323541840,6.7042,149.16,149.15,7.13833012]
[1728323542017,6.7042,149.16,149.15,3.56955099]
[1728323542533,6.7042,149.16,149.15,7.13833012]
[1728323542731,6.7042,149.16,149.15,3.56955099]
[1728323543144,6.7042,149.16,149.15,7.13833012]
[1728323543436,30.481084,149.16,149.15,3.56955099]
[1728323543634,29.935484,149.14,149.07,20.26199213]
[1728323543930,29.935484,149.14,149.04,6.98458427]
[1728323543931,6.7072,149.1,149.06,10.20079213]
[1728323544148,23.776884,149.13,149.06,3.49229213]
[1728323544438,6.7074,149.09,149.05,10.20129213]
[1728323544637,6.7083,149.07,149.05,3.49229213]
[1728323544814,6.7087,149.06,149.02,10.20269213]
[1728323545014,6.7087,149.06,149.02,6.7104]
[1728323545248,6.7094,149.05,149.01,16.7767]
[1728323545416,6.7096,149.04,149.01,16.7767]
[1728323545937,6.7096,149.04,148.99,6.7114]
[1728323546153,6.7096,149.04,149.0,6.7113]
[1728323546833,6.7096,149.04,148.99,6.7118]
[1728323547219,6.7092,149.05,149.01,6.7108]
[1728323547539,23.776884,149.06,149.0,6.7112]
[1728323547733,6.7096,149.04,149.0,6.7112]
[1728323548133,6.7096,149.04,149.0,8.05328119]
[1728323549335,23.776884,149.03,149.0,8.05328119]
[1728323549530,6.1586,149.07,149.01,16.7766]
[1728323549729,6.7077,149.09,149.04,6.7096]
[1728323550026,6.7069,149.1,149.05,6.7088]
[1728323550219,6.7074,149.09,149.05,6.7088]
[1728323550825,6.7074,149.09,149.04,8.05110222]
[1728323551364,23.776884,149.08,149.04,8.05110222]
[1728323552020,23.776884,149.08,149.04,1.34170222]
[1728323552333,23.776884,149.1,149.06,6.7082]
[1728323552525,23.776884,149.1,149.06,8.049741]
[1728323553043,33.5177,149.18,149.08,6.7077]
[1728323553044,6.706,149.12,149.08,6.7077]
[1728323553221,23.75421316,149.16,149.03,12.13503067]
[1728323553222,20.0,149.14,149.07,16.7701]
[1728323553623,6.7067,149.11,149.07,16.7701]
[1728323554842,30.484084,149.1,149.06,6.7083]
[1728323556258,23.776884,149.1,149.07,6.7082]
[1728323556752,30.483784,149.1,149.06,6.7086]
[1728323559249,30.483784,149.1,149.04,16.7735]
[1728323559250,23.776884,149.1,149.04,16.7735]
[1728323559640,6.7078,149.08,149.04,23.483]
[1728323562455,23.776884,149.1,149.05,1.3416764]
[1728323562753,23.776884,149.08,149.05,8.0507764]
[1728323564038,6.7072,149.1,149.06,6.7084]
[1728323564335,23.776884,149.09,149.06,6.7084]
[1728323567055,23.776884,149.09,149.07,1.34152487]
[1728323567250,30.484184,149.09,149.05,6.7087]
[1728323567654,23.776884,149.09,149.06,8.05012659]
[1728323568558,6.707,149.1,149.06,8.05012659]
[1728323569163,6.707,149.1,149.07,1.34143946]
[1728323569373,26.99509713,149.14,149.08,1.34145501]
[1728323569659,26.99509713,149.14,149.04,12.13503067]
[1728323569660,13.70039713,149.14,149.1,23.4736]
[1728323569848,6.7053,149.14,149.1,23.4736]
[1728323571558,6.7053,149.14,149.1,16.7671]
[1728323571559,6.7055,149.13,149.1,16.7671]
[1728323574875,30.482084,149.14,149.1,24.81507095]
[1728323576072,6.9933025,149.17,149.12,16.7646]
[1728323576377,6.7042,149.16,149.12,23.4702]
[1728323576775,6.7046,149.15,149.12,16.7646]
[1728323576956,6.7046,149.15,149.12,18.10561279]
[1728323578974,6.7033,149.18,149.14,6.7049]
[1728323579155,22.0982,149.19,149.14,16.7623]
[1728323579355,6.7042,149.16,149.12,6.7058]
[1728323580280,22.0982,149.19,149.11,36.7652]
[1728323580476,23.776884,149.18,149.11,16.7652]
[1728323580680,6.7054,149.14,149.1,6.7068]
[1728323581065,6.7055,149.13,149.09,6.7072]
[1728323581879,6.7052,149.14,149.1,8.04796638]
[1728323582177,23.776884,149.13,149.1,8.04796638]
[1728323582876,23.776884,149.13,149.1,6.7068]
[1728323583261,22.0982,149.19,149.11,1.34116649]
[1728323583471,6.7037,149.17,149.13,6.7054]
[1728323583664,6.7036,149.18,149.14,8.0456267]
[1728323583877,6.7038,149.17,149.13,6.7053]
[1728323584086,6.7038,149.17,149.14,1.34084557]
[1728323584792,6.7034,149.18,149.14,8.04564557]
[1728323584994,6.7029,149.19,149.15,6.7045]
[1728323585205,6.7029,149.19,149.16,1.34069444]
[1728323585674,6.7029,149.19,149.15,8.04519578]
[1728323586298,6.99220734,149.22,149.15,1.34069578]
[1728323586486,6.7025,149.2,149.16,6.704]
[1728323586677,6.7025,149.2,149.17,1.34065683]
[1728323587401,6.7025,149.2,149.16,8.04460951]
[1728323587690,23.776884,149.19,149.16,1.34060951]
[1728323587874,30.479684,149.19,149.16,1.34060951]
[1728323588468,23.776884,149.19,149.16,8.04460951]
[1728323588689,23.776884,149.2,149.17,6.7036]
[1728323588890,6.7019,149.21,149.18,1.34051657]
[1728323589276,21.7454,149.23,149.17,1.34050369]
[1728323589476,6.7025,149.2,149.17,1.34050369]
[1728323590377,6.7021,149.21,149.17,8.04420369]
[1728323591708,23.776884,149.22,149.17,1.34050369]
[1728323591877,30.478484,149.22,149.18,6.7032]
[1728323592211,6.702,149.21,149.17,8.04410369]
[1728323594378,23.776884,149.19,149.16,23.4642]
[1728323594980,30.479784,149.19,149.16,16.7601]
[1728323595210,6.7034,149.18,149.14,6.7051]
[1728323595700,6.7034,149.18,149.14,8.04588041]
[1728323596910,6.7034,149.18,149.14,8.04582977]
[1728323598480,6.7034,149.18,149.14,6.7051]
[1728323599299,6.7034,149.18,149.14,1.34073384]
[1728323599503,23.776884,149.19,149.15,6.7046]
[1728323599803,30.479884,149.19,149.15,6.7046]
[1728323602195,6.7047,149.15,149.11,26.706]
[1728323602510,6.7042,149.16,149.12,23.4706]
[1728323605494,6.7041,149.17,149.13,6.7055]
[1728323608512,30.479784,149.19,149.15,6.7043]
[1728323609998,23.776884,149.19,149.16,1.34074524]
[1728323610200,6.7024,149.2,149.16,8.04464524]
[1728323610831,6.7024,149.2,149.16,6.7039]
[1728323611621,6.7028,149.19,149.16,6.7039]
[1728323612306,6.7028,149.19,149.15,6.7045]
[1728323614534,6.7028,149.19,149.15,12.03127901]
[1728323615332,6.7028,149.19,149.15,6.7045]
[1728323617214,6.7028,149.19,149.15,8.04510011]
[1728323617531,6.7025,149.2,149.16,12.03624605]
[1728323617733,6.7025,149.2,149.16,6.7041]
[1728323619515,6.7029,149.19,149.14,16.7623]
[1728323619713,6.7029,149.19,149.15,12.040986]
[1728323619913,6.7029,149.19,149.16,5.336486]
[1728323620114,6.7029,149.19,149.15,6.7045]
[1728323620416,6.7029,149.19,149.16,5.3369194]
[1728323620738,23.776884,149.21,149.14,16.7623]
[1728323620739,40.531984,149.21,149.14,16.7623]
[1728323620923,40.531984,149.21,149.15,5.3390585]
[1728323621237,6.704,149.17,149.16,5.3390585]
[1728323623029,30.480884,149.17,149.16,5.3390585]
[1728323623542,6.7047,149.15,149.12,23.50519258]
[1728323623838,6.7047,149.15,149.13,8.85288795]
[1728323624038,6.7047,149.15,149.14,5.34769537]
[1728323625931,6.7047,149.15,149.11,23.4718]
[1728323626137,6.7047,149.15,149.12,8.85171752]
[1728323626323,6.7047,149.15,149.12,3.50506767]
[1728323626533,6.7047,149.15,149.13,8.8513687]
[1728323626737,6.7047,149.15,149.14,5.34630103]
[1728323628644,30.481584,149.15,149.14,5.34630103]
[1728323629358,30.481584,149.15,149.14,5.34505302]
[1728323631937,23.776884,149.15,149.09,3.49229213]
[1728323632144,6.7057,149.13,149.1,8.85289211]
[1728323632336,6.7057,149.13,149.11,8.85289211]
[1728323632530,6.7057,149.13,149.12,5.3473653]
[1728323632736,6.7057,149.13,149.12,5.3450536]
[1728323633130,6.7057,149.13,149.12,5.34530711]
[1728323635249,30.482584,149.13,149.12,5.34530711]
[1728323635438,30.483084,149.12,149.09,3.50394736]
[1728323635645,23.776884,149.12,149.1,5.34581478]
[1728323635837,6.7064,149.11,149.09,3.50394736]
[1728323636039,6.7064,149.11,149.1,5.34597982]
[1728323636240,6.7064,149.11,149.08,20.27243569]
[1728323636540,6.7064,149.11,149.09,5.34433811]
[1728323636743,6.7064,149.11,149.1,5.34433811]
[1728323637149,6.7064,149.11,149.08,20.27243569]
[1728323637342,6.7064,149.11,149.09,5.34248342]
[1728323637553,6.7064,149.11,149.08,20.27243569]
[1728323637754,6.7064,149.11,149.09,5.34313309]
[1728323637956,6.7064,149.11,149.08,20.27243569]
[1728323638155,6.7064,149.11,149.09,5.34328389]
[1728323638338,6.7064,149.11,149.08,16.7689]
[1728323638537,6.7064,149.11,149.09,5.34204592]
[1728323638836,6.7064,149.11,149.08,16.7689]
[1728323639066,6.7064,149.11,149.09,5.3420709]
[1728323639238,6.7064,149.11,149.08,16.7689]
[1728323639446,6.7064,149.11,149.09,5.34083116]
[1728323639640,6.7064,149.11,149.08,16.7689]
[1728323639839,6.7064,149.11,149.09,5.34082796]
[1728323640064,30.482984,149.12,149.08,26.97779905]
[1728323640358,30.482984,149.12,149.09,5.34031141]
[1728323640662,30.482984,149.12,149.1,5.34031141]
[1728323640865,30.482984,149.12,149.08,23.4765]
[1728323641051,30.482984,149.12,149.09,5.340085]
[1728323641251,30.482984,149.12,149.08,23.4765]
[1728323641451,30.482984,149.12,149.09,5.34011932]
[1728323641662,30.482984,149.12,149.1,5.34011932]
[1728323641866,30.482984,149.12,149.08,23.4765]
[1728323642172,30.482984,149.12,149.09,5.34007587]
[1728323642468,30.482984,149.12,149.1,5.34030374]
[1728323642659,30.482984,149.12,149.08,23.4765]
[1728323642861,30.482984,149.12,149.09,5.34030973]
[1728323643062,30.482984,149.12,149.1,5.34030973]
[1728323643243,30.482984,149.12,149.08,23.4765]
[1728323643443,30.482984,149.12,149.09,5.34009447]
[1728323643643,30.482984,149.12,149.1,5.34009447]
[1728323643863,30.482984,149.12,149.08,23.4765]
[1728323644076,30.482984,149.12,149.09,5.34012023]
[1728323644278,30.482984,149.12,149.08,23.4765]
[1728323645581,16.2143,149.16,149.08,23.4765]
[1728323645582,16.2143,149.16,149.09,1.34128642]
[1728323645883,6.7056,149.13,149.09,6.7072]
[1728323646461,6.7053,149.14,149.1,6.7068]
[1728323646884,6.7056,149.13,149.08,16.7689]
[1728323647175,6.7073,149.09,149.08,3.50054868]
[1728323647366,6.7073,149.09,149.06,3.50054868]
[1728323647968,6.7079,149.08,149.06,3.50054868]
[1728323648282,6.7074,149.09,149.05,26.98164868]
[1728323648590,6.7074,149.09,149.05,23.4811]
[1728323651169,30.77134907,149.15,149.09,6.7072]
[1728323651170,6.7056,149.13,149.09,6.7072]
[1728323651662,6.706,149.12,149.08,6.7076]
[1728323652281,6.7059,149.13,149.09,8.0484474]
[1728323652667,23.776884,149.13,149.1,6.7068]
[1728323653084,30.482384,149.13,149.09,24.8164474]
[1728323653265,30.482384,149.13,149.1,1.34121964]
[1728323653568,15.5129,149.15,149.1,1.34120862]
[1728323653764,22.2179,149.15,149.1,1.34120862]
[1728323653962,16.7591,149.18,149.11,16.7658]
[1728323654181,20.0,149.18,149.12,1.34099172]
[1728323654485,6.7038,149.17,149.13,6.7051]
[1728323654689,15.3558,149.19,149.14,1.34088315]
[1728323654867,6.7045,149.16,149.12,8.0467355]
[1728323655202,6.7045,149.16,149.12,6.7059]
[1728323656597,6.7047,149.15,149.11,35.60723067]
[1728323656771,6.7042,149.16,149.12,8.04684353]
[1728323657468,6.7042,149.16,149.12,6.7059]
[1728323657672,6.7042,149.16,149.13,1.34094183]
[1728323658092,6.7038,149.17,149.13,8.04644183]
[1728323658393,6.7038,149.17,149.13,6.7055]
[1728323658977,6.7038,149.17,149.14,1.34084276]
[1728323659178,30.480184,149.18,149.14,8.04584276]
[1728323660099,30.480184,149.18,149.14,1.34084276]
[1728323661902,6.7033,149.18,149.14,6.705]
[1728323662701,6.703,149.19,149.15,8.0452924]
[1728323663298,6.703,149.19,149.14,6.7049]
[1728323663613,6.7033,149.18,149.14,6.7049]
[1728323663814,23.776884,149.17,149.15,1.34069162]
[1728323664108,23.776884,149.18,149.15,8.04502348]
[1728323664607,23.776884,149.18,149.16,1.34068149]
[1728323665121,23.776884,149.18,149.15,6.7043]
[1728323666095,23.776884,149.18,149.16,1.34066513]
[1728323666516,23.776884,149.18,149.17,6.7037]
[1728323666700,6.7023,149.21,149.17,6.7037]
[1728323666903,6.7023,149.21,149.18,1.3404836]
[1728323668092,23.776884,149.2,149.18,8.0435836]
[1728323668291,23.776884,149.21,149.18,8.0435836]
[1728323668908,23.776884,149.22,149.19,16.7565]
[1728323669097,23.776884,149.22,149.19,23.4592]
[1728323669300,23.776884,149.22,149.19,16.7565]
[1728323669507,23.776884,149.22,149.15,12.13503067]
[1728323669817,23.776884,149.2,149.16,16.7596]
[1728323670023,30.479584,149.2,149.16,23.4635]
[1728323670192,23.776884,149.2,149.16,23.4635]
[1728323670805,23.776884,149.2,149.13,21.7436228]
[1728323671112,23.776884,149.2,149.14,20.0]
[1728323671409,6.7035,149.18,149.14,6.705]
[1728323671818,23.776884,149.17,149.14,6.705]
[1728323673117,23.776884,149.17,149.13,16.7629]
[1728323673508,23.776884,149.15,149.13,16.7629]
[1728323675616,23.776884,149.15,149.13,23.4684]
[1728323675834,23.776884,149.16,149.13,23.4684]
[1728323680299,23.776884,149.16,149.14,1.34083401]
[1728323681121,23.776884,149.16,149.13,23.4684]
[1728323681324,16.613,149.23,149.14,1.34083425]
[1728323681523,23.776884,149.19,149.15,16.7615]
[1728323681713,23.776884,149.19,149.16,1.34063497]
[1728323681909,6.7025,149.2,149.16,1.34063497]
[1728323682219,6.7025,149.2,149.16,8.04463497]
[1728323683425,23.776884,149.19,149.16,8.04463497]
[1728323688905,23.776884,149.19,149.13,20.0]
[1728323688906,6.7042,149.16,149.13,20.0]
[1728323689121,23.776884,149.16,149.13,10.19200126]
[1728323689536,30.481384,149.16,149.13,3.48690126]
[1728323689740,23.776884,149.17,149.13,3.48690126]
[1728323689923,23.776884,149.17,149.12,23.4701]
[1728323690126,23.776884,149.15,149.12,23.4701]
[1728323690527,23.776884,149.15,149.13,6.7055]
[1728323691343,23.776884,149.16,149.13,6.7055]
[1728323693546,23.776884,149.15,149.13,6.7055]
[1728323693763,30.481784,149.15,149.1,20.0]
[1728323694064,30.481784,149.15,149.12,6.7059]
[1728323694225,30.481784,149.15,149.11,23.48703313]
[1728323694426,30.481784,149.15,149.11,46.95903313]
[1728323694733,30.481784,149.15,149.11,43.472]
[1728323694945,30.481784,149.15,149.12,3.48722969]
[1728323695146,30.481784,149.15,149.11,43.472]
[1728323696155,23.776884,149.15,149.12,10.19575057]
[1728323696454,30.481484,149.15,149.12,10.19575057]
[1728323696846,30.481484,149.15,149.12,3.48980452]
[1728323697028,30.481484,149.15,149.11,43.4721]
[1728323697324,30.481484,149.15,149.12,3.49270407]
[1728323697957,30.481484,149.15,149.12,10.19860407]
[1728323699255,23.776884,149.15,149.13,3.49270407]
[1728323700267,23.776884,149.15,149.12,6.7059]
[1728323700452,23.776884,149.15,149.13,3.49467007]
[1728323701156,30.481584,149.15,149.12,10.20057007]
[1728323701460,23.776884,149.15,149.13,3.49467007]
[1728323702551,23.776884,149.15,149.12,6.7059]
[1728323702755,23.776884,149.15,149.13,3.49488788]
[1728323708387,30.481584,149.15,149.13,3.49488788]
[1728323708677,30.482384,149.13,149.09,10.19929213]
[1728323708848,23.776884,149.12,149.1,3.49543507]
[1728323709176,23.776884,149.12,149.11,3.49543507]
[1728323709377,23.776884,149.12,149.09,10.19929213]
[1728323709378,23.776884,149.12,149.1,3.49543507]
[1728323709573,23.776884,149.12,149.11,3.49543507]
[1728323709881,23.776884,149.12,149.1,3.49543507]
[1728323710085,45.14073215,149.18,149.11,3.49543507]
[1728323710381,23.776884,149.14,149.12,1.34104073]
[1728323711079,30.481984,149.14,149.11,10.20047812]
[1728323712266,30.481984,149.14,149.11,3.49447812]
[1728323712466,30.481984,149.14,149.1,23.4736]
[1728323712687,23.776884,149.12,149.1,23.4736]
[1728323713390,23.776884,149.1,149.07,20.26179213]
[1728323713562,23.776884,149.1,149.08,3.49302991]
[1728323713984,23.776884,149.1,149.07,23.4777]
[1728323719605,23.776884,149.1,149.08,1.34135019]
[1728323719906,23.776884,149.1,149.09,6.7073]
[1728323721707,23.776884,149.11,149.08,8.04895019]
[1728323723796,6.7047,149.15,149.09,12.13503067]
[1728323723986,6.7047,149.15,149.1,1.34097618]
[1728323724314,6.7042,149.16,149.12,6.7058]
[1728323724607,21.3333,149.17,149.11,16.7659]
[1728323724812,6.7042,149.16,149.12,6.7058]
[1728323726313,23.776884,149.15,149.12,6.7058]
[1728323727512,23.776884,149.13,149.1,6.7065]
[1728323728614,23.776884,149.14,149.11,6.7063]
[1728323730617,23.776884,149.14,149.11,13.67892587]
[1728323735820,23.776884,149.14,149.11,10.19277065]
[1728323736216,23.776884,149.14,149.12,3.48647065]
[1728323736712,23.776884,149.14,149.11,6.7063]
[1728323737100,23.776884,149.14,149.12,3.49114195]
[1728323737301,23.776884,149.14,149.11,10.19744195]
[1728323737525,6.7055,149.13,149.12,3.49114195]
[1728323737837,6.7063,149.12,149.1,3.49114195]
[1728323738022,6.7063,149.12,149.09,3.49114195]
[1728323739317,30.483484,149.11,149.09,3.49114195]
[1728323739527,23.776884,149.1,149.08,3.49114195]
[1728323739821,23.776884,149.1,149.09,3.49114195]
[1728323740022,23.776884,149.1,149.07,23.4776]
[1728323740023,23.776884,149.1,149.08,3.49114195]
[1728323740231,23.776884,149.1,149.09,3.49114195]
[1728323740522,23.776884,149.1,149.08,3.49394447]
[1728323740716,23.776884,149.11,149.09,3.49394447]
[1728323740916,23.776884,149.11,149.08,10.20164447]
[1728323741118,23.776884,149.11,149.09,3.49394447]
[1728323743323,23.776884,149.11,149.08,6.7077]
[1728323743629,23.776884,149.11,149.09,3.49449809]
[1728323746901,23.776884,149.11,149.09,3.49550315]
[1728323747100,6.7056,149.13,149.09,11.54409766]
[1728323747307,6.7056,149.13,149.09,8.04859451]
[1728323747519,6.7056,149.13,149.09,11.54409766]
[1728323747726,6.7056,149.13,149.09,8.04859451]
[1728323747930,6.7056,149.13,149.1,3.49550315]
[1728323748122,6.7056,149.13,149.11,1.34115063]
[1728323749231,21.7264,149.16,149.11,1.34115063]
[1728323749555,23.776884,149.13,149.11,1.34115063]
[1728323749711,23.776884,149.13,149.1,10.20210315]
[1728323750026,23.776884,149.13,149.1,8.0477596]
[1728323750215,23.776884,149.13,149.1,11.5421309]
[1728323750414,23.776884,149.13,149.1,4.8355309]
[1728323750619,23.776884,149.13,149.1,4.83540342]
[1728323751109,23.776884,149.13,149.1,1.3411596]
[1728323751430,30.481584,149.15,149.11,6.7063]
[1728323751633,30.481584,149.15,149.12,1.34104485]
[1728323752611,6.7051,149.14,149.11,3.49384759]
[1728323752829,6.7051,149.14,149.11,4.83490179]
[1728323755831,21.7264,149.16,149.11,21.60060179]
[1728323756014,21.7264,149.16,149.12,10.19914527]
[1728323756207,21.7264,149.16,149.13,1.34087667]
[1728323756415,23.776884,149.16,149.13,1.34087667]
[1728323757312,23.776884,149.16,149.12,10.19871236]
[1728323757313,30.481284,149.16,149.12,10.19871236]
[1728323759109,30.481284,149.16,149.12,6.7055]
[1728323761219,30.481284,149.16,149.12,10.19878066]
[1728323762338,30.481284,149.16,149.12,10.19964136]
[1728323764241,21.9404,149.2,149.14,12.13503067]
[1728323764432,28.6431,149.2,149.16,6.7038]
[1728323764820,28.6431,149.2,149.17,1.34055737]
[1728323765045,28.6431,149.2,149.16,6.7038]
[1728323765217,22.4291,149.2,149.17,1.34055183]
[1728323766126,6.7027,149.2,149.17,1.34055183]
[1728323767341,6.7027,149.2,149.16,6.7038]
[1728323769429,6.2671,149.23,149.15,16.7612]
[1728323769645,6.7038,149.17,149.13,6.7053]
[1728323770129,23.776884,149.18,149.11,6.706]
[1728323770331,6.7049,149.15,149.11,6.706]
[1728323770544,30.265284,149.18,149.12,3.48935734]
[1728323770724,6.7043,149.16,149.12,6.7059]
[1728323771241,6.7043,149.16,149.12,10.19628014]
[1728323773150,6.7043,149.16,149.12,6.7059]
[1728323773322,6.7043,149.16,149.12,10.19613453]
[1728323776439,6.7043,149.16,149.12,10.19566919]
[1728323776942,47.023784,149.18,149.12,3.48976919]
[1728323777149,6.7051,149.14,149.12,3.48976919]
[1728323779225,6.7051,149.14,149.12,4.83082563]
[1728323779435,6.7047,149.15,149.12,4.83082563]
[1728323779643,6.7047,149.15,149.12,3.48980853]
[1728323781119,6.7051,149.14,149.11,23.4722]
[1728323782647,6.7051,149.14,149.11,16.7659]
[1728323785847,23.776884,149.13,149.08,20.26119213]
[1728323786147,6.706,149.12,149.11,3.49117884]
[1728323786335,6.7069,149.1,149.08,3.49117884]
[1728323786571,6.7069,149.1,149.07,3.49229213]
[1728323786731,6.7069,149.1,149.09,3.49204139]
[1728323786932,6.7065,149.11,149.08,4.83343309]
[1728323787150,6.7065,149.11,149.09,3.49204139]
[1728323787432,6.7065,149.11,149.08,1.3413917]
[1728323787732,6.7065,149.11,149.09,3.49208138]
[1728323787933,6.7065,149.11,149.08,1.3413917]
[1728323788131,6.7065,149.11,149.09,3.49212217]
[1728323788431,6.7065,149.11,149.08,1.3413917]
[1728323788643,6.7065,149.11,149.09,3.49192326]
[1728323788845,6.7065,149.11,149.08,1.3413917]
[1728323789047,6.7065,149.11,149.09,3.4918503]
[1728323789236,6.7065,149.11,149.08,1.34140088]
[1728323789435,6.7065,149.11,149.09,3.4916583]
[1728323789635,6.7065,149.11,149.08,1.34140088]
[1728323789850,6.7065,149.11,149.09,3.49172349]
[1728323790243,6.7065,149.11,149.08,1.34139911]
[1728323790558,6.7065,149.11,149.09,3.49159832]
[1728323790751,6.7065,149.11,149.07,6.708]
[1728323790949,6.7065,149.11,149.08,3.49160007]
[1728323791131,6.7065,149.11,149.09,3.49160007]
[1728323791453,6.7065,149.11,149.07,6.708]
[1728323791631,6.7065,149.11,149.08,3.49124857]
[1728323791836,6.7069,149.1,149.09,3.49124857]
[1728323792035,6.7069,149.1,149.07,3.49124857]
[1728323792248,6.7069,149.1,149.08,3.49124857]
[1728323792451,6.7069,149.1,149.09,3.49124857]
[1728323792656,6.7069,149.1,149.07,3.49124857]
[1728323792954,6.7069,149.1,149.08,3.49124857]
[1728323793165,6.7069,149.1,149.09,3.49124857]
[1728323793325,6.7069,149.1,149.07,3.49124857]
[1728323793531,6.7069,149.1,149.08,3.49124857]
[1728323793755,6.7069,149.1,149.09,3.49124857]
[1728323794086,6.7069,149.1,149.07,10.19944857]
[1728323794261,6.7066,149.11,149.08,3.49124857]
[1728323794442,6.7066,149.11,149.09,3.49124857]
[1728323794642,6.7066,149.11,149.08,3.49124857]
[1728323794843,6.7066,149.11,149.09,3.49124857]
[1728323795050,6.7066,149.11,149.08,3.49124857]
[1728323795250,6.7066,149.11,149.09,3.49124857]
[1728323795449,6.7066,149.11,149.08,3.49124857]
[1728323795750,6.7066,149.11,149.09,3.49124857]
[1728323795951,6.7066,149.11,149.08,3.49124857]
[1728323796152,6.7066,149.11,149.09,3.49124857]
[1728323796352,6.7066,149.11,149.08,3.49124857]
[1728323796763,30.373384,149.13,149.08,3.49124857]
[1728323796764,6.7073,149.09,149.08,3.49124857]
[1728323796971,29.900084,149.08,149.06,3.49124857]
[1728323797130,23.776884,149.06,149.02,3.49124857]
[1728323797334,6.71,149.03,149.0,6.9835407]
[1728323797644,6.7097,149.04,149.0,10.20254857]
[1728323798051,6.7097,149.04,149.0,6.7113]
[1728323798736,30.485684,149.06,149.02,6.7103]
[1728323798940,23.776884,149.06,149.03,6.71]